Cogmind - Beta 17.1 @@@ ROGUE MODE // 2026.09.20 @ 15:00:41 Player: UnderDoug Result: Destroyed by S-10 Pest with Light Assault Rifle Performance ------------- Evolutions (0) 0 Regions Visited (2) 400 Robots Destroyed (28) 140 Value Destroyed (538) 538 Prototype IDs (2) 40 Alien Tech Used (0) 0 Bonus (5000) 5000 TOTAL SCORE: 6118 Bonus ------- Prayed to X0-1V1 5000 Cogmind --------- Core Integrity 0/250 Matter 149/150 Energy 96/100 System Corruption 1% Temperature Cool (0) Movement Core (450) Ox8 Location -10/Subcaves Parts ------- > --- POWER (1) -------- (None) > --- PROPULSION (2) --- (None) > --- UTILITY (2) ------ Large Storage Unit X0-1V1's Piety Tracker > --- WEAPON (2) ------- Advanced Beam Cannon Light Assault Rifle > --- INVENTORY (15) --- Light Ion Engine Aluminum Leg Aluminum Leg Makeshift Leg Large Storage Unit High-capacity Matter Pod (200) Improved Terrain Scanner Seismic Detector Hardened Light Armor Plating Makeshift Light Armor Plating Medium Laser Light Assault Rifle Battle Rifle Subdweller Shrapnel Launcher Mining Laser Peak State ------------ > --- POWER ------------ Ion Engine > --- PROPULSION ------- Light Treads Light Treads > --- UTILITY ---------- Large Storage Unit X0-1V1's Piety Tracker > --- WEAPON ----------- Advanced Beam Cannon Mining Claw > --- INVENTORY -------- Light Ion Engine Aluminum Leg Aluminum Leg Makeshift Leg Large Storage Unit High-capacity Matter Pod Improved Terrain Scanner Seismic Detector Hardened Light Armor Plating Makeshift Light Armor Plating Medium Laser Light Assault Rifle Light Assault Rifle Mining Laser [Rating: 23] Favorites ----------- Power Ion Engine Engine Ion Engine Propulsion Aluminum Leg Treads Light Treads Leg Aluminum Leg Utility Seismic Detector Device Seismic Detector Storage Medium Storage Unit Weapon Light Cannon Energy Gun Medium Laser Energy Cannon Advanced Beam Cannon Ballistic Gun Light Assault Rifle Ballistic Cannon Light Cannon Special Weapon Mining Laser Slashing Weapon Mining Claw Build | -11 -10 -10 ------- Run | Yrd Mat Sub Slots Evolved . | . . . Power . | . . . Propulsion . | . . . Utility . | . . . Weapon . | . . . Parts Attached 20 | 7 7 6 Power 1 | 1 . . Engine 1 | 1 . . Core . | . . . Reactor . | . . . Propulsion 6 | 2 1 3 Treads 2 | . . 2 Leg 4 | 2 1 1 Wheel . | . . . Hover . | . . . Flight . | . . . Utility 5 | 2 3 . Device 2 | 1 1 . Storage 3 | 1 2 . Processor . | . . . Hackware . | . . . Protection . | . . . Artifact . | . . . Weapon 8 | 2 3 3 Energy Gun 1 | 1 . . Energy Cannon 1 | . . 1 Ballistic Gun 2 | 1 . 1 Ballistic Cannon 2 | . 2 . Launcher . | . . . Special Weapon 1 | . . 1 Impact Weapon . | . . . Slashing Weapon 1 | . 1 . Piercing Weapon . | . . . Special Melee Weapon . | . . . Unidentified Prototypes 2 | . 1 1 Parts Lost 8 | . 2 6 Power 1 | . . 1 Propulsion 4 | . 1 3 Utility . | . . . Weapon 3 | . 1 2 Highest Loss Streak 3 | . 2 3 To Critical Strikes . | . . . Average Backups 11 | 4 9 14 Power . | . 1 1 Propulsion 2 | 2 2 2 Utility 3 | . 2 6 Weapon 3 | 1 3 4 Tool/Special . | . . . Unused Backups 13 | . 2 11 Power 1 | . . 1 Propulsion 2 | . 1 1 Utility 7 | . 1 6 Weapon 3 | . . 3 Tool/Special . | . . . Average Slot Usage (%) 99 | . 100 99 Engine 13 | . 14 13 Treads 9 | . . 25 Leg 18 | . 28 2 Device 14 | . 14 14 Storage 14 | . 14 14 Energy Cannon 2 | . . 7 Ballistic Gun 4 | . 1 10 Ballistic Cannon 9 | . 12 2 Special Weapon 1 | . . 4 Slashing Weapon 9 | . 12 2 Peak Build Rating 23 | 8 21 23 Average Rating 12 | 6 8 21 On Entrance 9 | . 8 21 Avg Prop Armor Cover (%) . | . . . Naked Turns . | . . . Heaviest Build 32 | 15 31 32 Greatest Support 40 | 20 20 40 Greatest Overweight (x) 4 | 4 1 1 Average Overweight (x) . | . . . Largest Inventory Capacity 15 | 8 15 15 Average Capacity 12 | 7 10 15 Most Carried 15 | 8 15 15 Average Carried 11 | 4 9 14 Final Capacity 15 | 8 15 15 Final Carried 15 | 8 15 15 Class Distribution -------------------- 100% | Mutant Dominant Class ---------------- Mutant | -10/Materials Mutant | -10/Subcaves Resources | -11 -10 -10 ----------- Run | Yrd Mat Sub Matter Collected 904 | 306 291 307 Remotely . | . . . Salvage Created 574 | 207 143 224 Parts 58 | 22 21 15 Haulers Intercepted . | . . . Recyclers Shooed . | . . . Parts Field Recycled . | . . . Retrieved Matter . | . . . Parts Self-Destructed 6 | . . 6 Prevented . | . . . Parts Restored . | . . . Kills | -11 -10 -10 ------- Run | Yrd Mat Sub Combat Hostiles Destroyed 20 | . 13 7 Cannons 17 | . 11 6 AOE 2 | . 2 . Classes Destroyed 7 | 3 2 2 Worker 2 | 2 . . Tunneler 5 | 5 . . Recycler 1 | 1 . . Swarmer 10 | . 9 1 Grunt 5 | . 4 1 Sentry 1 | . . 1 Subdweller 4 | . . 4 Best Kill Streak 6 | 4 6 2 Combat Bots Only 6 | . 6 2 Max Kills in Single Turn 2 | 2 2 1 Gunslinging . | . . . Exploded 2 | . 2 . Melee . | . . . Uniques/NPCs Destroyed . | . . . Combat | -11 -10 -10 -------- Run | Yrd Mat Sub Hostile Shots Fired 143 | . 80 63 Missed 35 | . 18 17 Hits 108 | . 62 46 Projectile 108 | . 62 46 AOE 2 | . . 2 Damage Taken 1373 | . 628 745 Core 254 | . 117 137 Absorbed by Shields . | . . . Core Remaining (%) 100 | 100 . . Volleys Fired 103 | 12 55 36 Largest 2 | 2 2 2 Hottest 120 | 70 70 120 Shots Fired 130 | 24 57 49 Gun 41 | 24 4 13 Cannon 85 | . 53 32 Launcher . | . . . Special 4 | . . 4 Kinetic 90 | 12 55 23 Thermal 40 | 12 2 26 Explosive . | . . . Electromagnetic . | . . . Robot Hit Streak 14 | 3 9 14 Robot Miss Streak 10 | 2 10 2 Penetration Max . | . . . Secondary Targets . | . . . Shots Hit Robots 79 | 13 33 33 Core Hits 31 | 9 11 11 Critical Kills 1 | . . 1 Critical Parts Destroyed . | . . . Critical Strikes 3 | . 2 1 Meltdown 1 | . . 1 Blast 2 | . 2 . Melee Attacks 5 | . 5 . Impact . | . . . Slashing 5 | . 5 . Piercing . | . . . Sneak Attacks . | . . . Combat Hostiles . | . . . Follow-up Attacks . | . . . Damage Inflicted 1631 | 186 862 583 Guns 240 | 186 11 43 Cannons 1097 | . 557 540 Explosions 294 | . 294 . Melee . | . . . Ramming . | . . . Kinetic 857 | 111 568 178 Thermal 774 | 75 294 405 Explosive . | . . . Electromagnetic . | . . . Impact . | . . . Slashing . | . . . Piercing . | . . . Highest Corruption 1 | . 1 1 Average Corruption 1 | . 1 1 Corruption Purged . | . . . Corruption Blocked . | . . . Effects 17 | . 10 7 Message Errors 6 | . 4 2 Matter Fused 3 | . 3 . Energy Discharges 2 | . 1 1 Data Loss (major) 5 | . 1 4 Alerts 1 | . 1 . Overload Shots . | . . . Overflow Damage 230 | . 230 . Projectiles . | . . . Explosions 230 | . 230 . Melee . | . . . Knockbacks 11 | . 11 . Impact . | . . . Kinetic 9 | . 9 . Secondary 2 | . 2 . Self-Inflicted Damage 100 | . 100 . Shots 1 | . 1 . Rammed . | . . . Targets Rammed . | . . . Kicked . | . . . Crushed . | . . . Highest Temperature 27 | 27 18 16 Average Temperature 9 | 11 6 7 Received Heat Transfer 195 | . 48 147 Siege Activations . | . . . Martial Activations . | . . . Shielding Activations . | . . . Robots Disrupted . | . . . Combat Hostiles . | . . . Robots Corrupted . | . . . Combat Hostiles . | . . . Parts Fried . | . . . Impact Corruptions . | . . . Robots Melted 1 | . . 1 Combat Hostiles 1 | . . 1 Parts Melted 2 | . . 2 Heat Transferred 1112 | 222 150 740 Parts Sabotaged . | . . . Parts Stolen . | . . . Parts Stripped . | . . . Power Chain Reactions . | . . . Alert | -11 -10 -10 ------- Run | Yrd Mat Sub Maximum Alert Level 1 | . 1 . Low Security (%) 85 | 100 84 . Level 1 14 | . 15 . Level 2 . | . . . Level 3 . | . . . Level 4 . | . . . Level 5 . | . . . High Security . | . . . Max Security . | . . . Peak Influence 258 | 15 258 . Initial 3 | . 3 . Average 93 | 2 101 . Influence Increases 622 | 40 477 105 Destroy 0b10 Robot/C 320 | . 260 60 Destroy 0b10 Robot/NC 40 | 40 . . Destroy Leader 50 | . 50 . Successful Hack 32 | . 32 . Disable Machine 30 | . 30 . Destroy Structure 30 | . 30 . Lose Combat Pursuer 120 | . 75 45 Influence Decreases 613 | 35 337 241 Entered New Map 72 | . 2 70 Time Decay 441 | 35 295 111 Lost Part 80 | . 20 60 Purge Threat 20 | . 20 . Squads Dispatched 2 | . 2 . Investigation 1 | . 1 . Extermination . | . . . Reinforcement 1 | . 1 . Assault . | . . . Garrison . | . . . Intercept . | . . . Searches Triggered . | . . . Construction Impeded . | . . . Haulers Reinforced . | . . . Active Scanning Responses . | . . . Cargo Convoy Interrupts . | . . . Stealth | -11 -10 -10 --------- Run | Yrd Mat Sub Distress Signals . | . . . Communications Jammed . | . . . Distress Signals . | . . . Times Spotted 35 | . 21 14 Peak Tracking Total 6 | . 6 6 Tactical Retreats 5 | . 4 1 Traps | -11 -10 -10 ------- Run | Yrd Mat Sub Traps Triggered 2 | . 2 . Indirectly . | . . . Trap Hack Attempts . | . . . Triggered . | . . . Disarmed . | . . . Reprogrammed . | . . . Reused . | . . . Traps Extracted . | . . . Installed . | . . . Triggered . | . . . Machines | -11 -10 -10 ---------- Run | Yrd Mat Sub Machines Disabled 2 | . 2 . Max in Single Turn 2 | . 2 . Machines Repaired . | . . . Machines Dismantled . | . . . Machines Sabotaged . | . . . Overloaded Fab Kills . | . . . Hacking | -11 -10 -10 --------- Run | Yrd Mat Sub Machines Accessed 10 | . 8 2 Terminals 6 | . 6 . Fabricators . | . . . Repair Stations . | . . . Recycling Units 2 | . 2 . Scanalyzers . | . . . Garrison Access . | . . . Total Hacks 16 | . 14 2 Successful 10 | . 8 2 Failed 6 | . 6 . Catastrophic 3 | . 3 . Database Lockouts . | . . . Manual 14 | . 14 . Terminals 12 | . 12 . Fabricators . | . . . Repair Stations . | . . . Recycling Units 2 | . 2 . Scanalyzers . | . . . Garrison Access . | . . . Terminal Hacks 3 | . 1 2 Open Door 1 | . . 1 Unreport Threat 1 | . 1 . Release Object 1 | . . 1 Fabricator Hacks . | . . . Repair Station Hacks . | . . . Recycling Unit Hacks 1 | . 1 . Report Inventory 1 | . 1 . Scanalyzer . | . . . Garrison Access Hacks . | . . . Unauthorized Hacks 6 | . 6 . Terminals 5 | . 5 . Skim 5 | . 5 . Fabricators . | . . . Repair Stations . | . . . Recycling Units 1 | . 1 . Monitor 1 | . 1 . Scanalyzers . | . . . Garrison Access . | . . . Data Cores Recovered . | . . . Used . | . . . Hacking Detections 7 | . 7 . Full Trace Events . | . . . Feedback Events . | . . . Feedback Blocked . | . . . Robot Schematics Acquired . | . . . Robots Built . | . . . Authchips . | . . . Time . | . . . Total Robot Build Rating . | . . . Part Schematics Acquired . | . . . Parts Built . | . . . Authchips . | . . . Time . | . . . Total Part Build Rating . | . . . Part Studies Acquired . | . . . Parts Repaired . | . . . Time . | . . . Parts Recycled . | . . . Recycled Matter . | . . . Retrieved Matter . | . . . Retrieved Components . | . . . Parts Scanalyzed . | . . . Part Schematics Acquired . | . . . Parts Damaged . | . . . Bothacking | -11 -10 -10 ------------ Run | Yrd Mat Sub Used RIF Installer . | . . . Robots Hacked . | . . . Non-combat . | . . . Combat . | . . . Robot Hacks Applied . | . . . Relay Couplers Released . | . . . Fabnet Peak Effective % . | . . . Robots Rewired . | . . . Allies Hacked . | . . . Hacks Repelled . | . . . Allies | -11 -10 -10 -------- Run | Yrd Mat Sub Total Allies . | . . . Largest Group . | . . . Highest-Rated Group . | . . . Highest-Rated Ally . | . . . Total Orders . | . . . Ally Attacks . | . . . Total Damage . | . . . Kills . | . . . Allies Corrupted . | . . . Allies Melted . | . . . X0-1V1 Amusement Gains 57 | . 7 50 Average Entertainment 4 | . 7 4 Good Acts 3 | . . 3 Bad Acts 1 | . . 1 Intel | -11 -10 -10 ------- Run | Yrd Mat Sub Active Infowar (turns) 1677 | 99 1578 . Seismic 1677 | 99 1578 . Robot Analysis Total . | . . . Derelict Logs Recovered 1 | . . 1 Drone Launches . | . . . Drone Recoveries . | . . . Exploration | -11 -10 -10 ------------- Run | Yrd Mat Sub Turns Passed 2609 | 145 1581 883 Spaces Moved 1317 | 71 765 481 Core 10 | 10 . . Treads 456 | . . 456 Legs 851 | 61 765 25 Wheels . | . . . Hover . | . . . Flight . | . . . Fastest Speed 50 | 50 120 160 Average Speed 171 | 128 182 161 Slowest Speed 250 | 250 190 190 Overloaded Moves . | . . . Propulsion Burnouts . | . . . Robots Hopped . | . . . Potential Cave-ins . | . . . Cave-ins Triggered . | . . . Exploration Rate (%) 49 | 5 98 46 Regions Visited 2 Branch Regions 1 Pre-discovered Areas . | . . . Known Exits Taken 1 | . 1 . Unknown Exits Taken 1 | 1 . . Scrap Searched . | . . . Spaces Dug 3 | . 3 . Terrain Destroyed 40 | . 40 . Melee 3 | . 3 . Projectile . | . . . AOE 37 | . 37 . Terrain Rammed . | . . . Walls Destroyed . | . . . Machines Disabled . | . . . Actions | -11 -10 -10 --------- Run | Yrd Mat Sub Total 1516 | 97 887 532 Wait 39 | . 37 2 Move 1315 | 70 764 481 Hop . | . . . Pick Up 25 | 8 13 4 Fast Attach 7 | 7 . . Attach 6 | . 3 3 Detach . | . . . Swap 8 | . 4 4 Drop 7 | . 6 1 Fire 103 | 12 55 36 Melee 5 | . 5 . Ram . | . . . Kick . | . . . Crush . | . . . Escape Stasis . | . . . Rewire . | . . . Trap . | . . . Miscellaneous 1 | . . 1 Route ------- -11/Scrapyard -10/Materials (discovered 6 exits: *Mat x3 / [*Min x2] / *Sub) -10/Subcaves (discovered 4 exits: *Mat x2 / [*Rec] / [*Scr]) History --------- Turn | Location | Event 2 | -11/Scrapyard | Met Revision 17 24 | -11/Scrapyard | Discovered new exit (range 15) 146 | -11/Scrapyard | Entered Materials 307 | -10/Materials | Build established: Mutant 432 | -10/Materials | Discovered new exit (range 16) 574 | -10/Materials | Discovered new exit (range 15) 1043 | -10/Materials | Discovered new exit (range 12) 1133 | -10/Materials | Identified exit to Materials 1235 | -10/Materials | Loaded intel: 6 trap records 1273 | -10/Materials | Identified exit to Subcaves 1306 | -10/Materials | Discovered new exit (range 16) 1313 | -10/Materials | Loaded intel: 1 repair station location 1399 | -10/Materials | Learned location of 2 exits from Materials 1720 | -10/Materials | Prayed at D.C.S.S. Altar Unit 1727 | -10/Materials | Entered Subcaves 1728 | -10/Subcaves | Approached by a straggling Scientist 1728 | -10/Subcaves | Identified exit to Materials 1780 | -10/Subcaves | Scientist uncovered a shortcut to Scraptown 1780 | -10/Subcaves | Core integrity fell below 50% 1786 | -10/Subcaves | X0-1V1 whisked you away to safety 1884 | -10/Subcaves | Ambushed by Subdwellers from Twisted Machinery 1908 | -10/Subcaves | Core integrity fell below 20% 2001 | -10/Subcaves | Shifting Twisted Machinery released Mak. Flight Unit 2003 | -10/Subcaves | Shifting Twisted Machinery released Battle Rifle 2166 | -10/Subcaves | Released subatomizers from SUBCON Basin 2208 | -10/Subcaves | A swath of the cavern ceiling suddenly collapsed 2324 | -10/Subcaves | Learned 2 Materials zone layouts 2329 | -10/Subcaves | Shifting Twisted Machinery released Sub. Laser 2375 | -10/Subcaves | Shifting Twisted Machinery released Piercing Trap 2430 | -10/Subcaves | Shifting Twisted Machinery released Sub. Shrapnel Launcher 2453 | -10/Subcaves | Shifting Twisted Machinery released Sub. Laser 2602 | -10/Subcaves | Discovered new exit (range 10) 2610 | -10/Subcaves | Destroyed by S-10 Pest with Light Assault Rifle Last Messages --------------- 02409_ Subatomizers dissect the Sub. Optics. 02425_ Sight range returns to normal. Sub. Shrapnel Launcher falls loose from the Twisted Machinery. 02431_ System corrupted: Energy discharge (-50). 02448_ Acquired Sub. Shrapnel Launcher. Sub. Laser falls loose from the Twisted Machinery. 02458_ System corrupted: Substantial component data lost. 02482_ G-34 Mercenary destroyed. 02486_ Acquired 15 matter. 02510_ Acquired 27 matter. 02602_ EXIT=FOUND 02602_ S-10 Pest springs to life. 02604_ Lgt. Treads destroyed. 02606_ Ion Engine destroyed. 02607_ Lgt. Treads destroyed. 02610_ X0-1V1 snickers! Map ----- +----------------------------------------------------+ | ???????????????????### ###?###???????????????????? | | ?????????????????###"""""### ##??????????????????? | | ?????????????????# #" #??????????????????? | | ??????????????????# #####???????????????? | | ??????????????????# "" ##??????????????? | | ?????? ????????## " #??????????????? | | ?????? ##???????# "## ^#??????????????? | | ###?? #???????# ### #??????????????? | | ##? ##?? ??# ### #??????????????? | | ## ?? # ###### "#??????????????? | | # #??## # #???#" ""##??????????????? | | #???# ## #???### ##???????????????# | | # #??## ?## ##?????# #????????????????# | | ????# """ ?## #?????# #???????????????? | | #?????# """?## [""###??## ##???????????????## | | #?????## ""### """ #### #??????????????## | | #??????# ## ## #???????????????" | | ########"""##" "### ##???????????????" | | # ## """##"""""## # #????????????????# | | """"" # ####???????????????## | | # "" # #??#???????????????#"" | | # # " ## ###?????????????# | | #### #### ######### #??????????#### | | #??# ##??####???????# # # #??????????#""" | | ### ## #?????????## ###?????????????#"" "" | | #?????????#@ #???????????????????" | | #???????????# s##???????????????????#" | | """ ##???????? s #????????????????????#" | | ### #?????< s ????????????????????# | | """ #?? #???##"" s ??????????????????#"" | | ##" #??# ?????#" # ##?????????????????### | | #?"" #?? ????#" #####????????????????????? | | ##??" ##### ????#""" "?????????????????????????? | | ??# [" ? #?# #???#######?????????????????????????? | | ##"""?"& ##??????????????????????????????????????? | | #"" ??#" ???????????????????????????????????????? | | #""#??#" #???????????????????????????????????????? | | #""##?#" ##??????????????????????????????????????? | | # ""#?# ##?????????????????????????????????????? | | " ### #?????????????????????????????????????? | | "# ##" " #?????????????????????????????????????? | | " ""#??????????????????????????????????????? | | <""##??????????????????????????????????????? | | ## ##???????????????????????????????????????? | | #### #????????????????????????????????????????? | | #??## ##????????????????????????????????????????? | | #???###?????????????????????????????????????????? | | ##???????????????????????????????????????????????? | | ?????????????????????????????????????????????????? | | ?????????????????????????????????????????????????? | +----------------------------------------------------+ Best States ------------- Heat Dissipation 25 Energy Generation 10 Energy Capacity 250 Matter Stores 300 Matter Capacity 300 Sight Range 18 Terrain Scan Density 10 Evasion (%) 55 Recoil Reduction 2 Item Schematics ----------------- None Robot Schematics ------------------ None Fabricated ------------ Nothing Repaired ---------- Nothing Studied --------- None Alien Tech Used ----------------- None Achievements -------------- None Challenges ------------ None Game ------ Seed ChromaticGatlingChronowheel Manual? 0 Play Time 00:18:22 Cumulative 25.3 hours Start 2026.09.20 @ 14:40:06 End 2026.09.20 @ 15:00:41 Sessions 1 Manual Loads 0 Difficulty Rogue Special Mode None Game No. 49 Rogue 49 Adventurer 0 Explorer 0 Win Type - Total 0 Types 0/0/0/0/0/0/0/0/0/0 Lore% 33 Gallery% 19 Achievement% 17 Wizard Run 0 Options --------- Layout 2 ASCII 0 Keyboard 0 Movement Mouse Keybinds 0 Fullscreen 2 Font 24/Smallcaps Map View 50x44 Zoom Use 0% Tactical HUD 1 Map Filters NONE Filters NONE Steam 1 RUN: f382e231-93da-41f7-bd44-8247ec997304